bitfinex-derivatives/quotes_BNBF0:USTF0_20241231
["timestamp","ask_amount","ask_price","bid_price","bid_amount"]
[1735604445910,0.28321391,706.18,704.5,1.04226349]
[1735604446713,0.28321391,706.18,704.51,0.28388525]
[1735604446912,0.28321391,706.18,704.51,1.32614874]
[1735604447716,0.28321391,706.18,704.54,1.04226349]
[1735604449116,0.28321391,706.18,704.51,0.28388525]
[1735604453721,0.28321391,706.18,704.58,1.04226349]
[1735604454921,0.28321391,706.18,704.51,0.28388525]
[1735604465835,0.26083081,706.17,704.51,0.28388525]
[1735604466032,0.26083081,706.17,704.56,1.04226349]
[1735604466640,0.28321391,706.18,704.56,1.04226349]
[1735604467042,0.28321391,706.18,704.6,1.04226349]
[1735604468644,0.28321391,706.18,704.61,1.04226349]
[1735604469547,0.28321391,706.18,704.65,1.04226349]
[1735604470847,0.28321391,706.18,704.51,0.28388525]
[1735604470848,0.28321391,706.18,704.66,1.04226349]
[1735604471848,0.28321391,706.18,704.78,1.04226349]
[1735604472846,0.28321391,706.18,704.81,1.04226349]
[1735604475645,0.28321391,706.18,704.93,1.04226349]
[1735604476852,0.28321391,706.18,704.96,1.04226349]
[1735604478052,0.28321391,706.18,704.89,1.04226349]
[1735604479056,0.28321391,706.18,704.88,1.04226349]
[1735604480057,0.28321391,706.18,704.84,1.04226349]
[1735604481156,0.28321391,706.18,704.82,1.04226349]
[1735604481856,0.28321391,706.18,704.81,1.04226349]
[1735604483751,0.28321391,706.18,704.79,1.04226349]
[1735604484758,0.28321391,706.18,704.76,1.04226349]
[1735604485851,0.28321391,706.18,704.84,1.04226349]
[1735604486954,0.28321391,706.18,704.82,1.04226349]
[1735604488159,0.28321391,706.18,704.79,1.04226349]
[1735604489458,0.28321391,706.18,704.8,1.04226349]
[1735604490563,0.28321391,706.18,704.92,1.04226349]
[1735604491762,0.28321391,706.18,704.93,1.04226349]
[1735604492856,0.28321391,706.18,704.92,1.04226349]
[1735604495062,0.28321391,706.18,703.06,3.73481737]
[1735604495063,0.28321391,706.18,704.78,1.04226349]
[1735604495965,0.28321391,706.18,704.74,1.04226349]
[1735604497058,0.28321391,706.18,704.79,1.04226349]
[1735604500160,0.28321391,706.18,704.14,2.12795464]
[1735604500161,0.28321391,706.18,704.66,1.04226349]
[1735604501165,0.28321391,706.18,704.67,1.04226349]
[1735604502466,0.28321391,706.18,704.36,2.65454574]
[1735604502467,0.28321391,706.18,704.69,1.04226349]
[1735604503469,0.28321391,706.18,704.8,1.04226349]
[1735604504572,0.28321391,706.18,704.81,1.04226349]
[1735604505473,0.28321391,706.18,704.83,1.04226349]
[1735604507673,0.26079724,706.17,704.83,1.04226349]
[1735604508165,0.26080235,706.16,704.83,1.04226349]
[1735604508366,0.26080235,706.15,704.83,1.04226349]
[1735604508569,0.26080235,706.14,704.83,1.04226349]
[1735604508769,0.26080235,706.13,704.83,1.04226349]
[1735604508972,0.26080235,706.12,704.83,1.04226349]
[1735604509168,0.28321391,706.18,704.83,1.04226349]
[1735604509373,1.48027365,706.11,704.83,1.04226349]
[1735604517481,1.48027365,706.11,704.71,1.04226349]
[1735604518278,0.28325001,706.09,704.72,1.04226349]
[1735604521177,0.28325001,706.09,704.83,1.04226349]
[1735604522280,0.28325001,706.09,704.96,1.04226349]
[1735604523483,0.28325001,706.09,704.99,1.04226349]
[1735604524487,0.28325001,706.09,705.0,1.04226349]
[1735604525588,0.28325001,706.09,704.96,1.04226349]
[1735604526489,0.28325001,706.09,704.94,1.04226349]
[1735604527688,0.28325001,706.09,704.87,1.04226349]
[1735604528890,0.28325001,706.09,704.89,1.04226349]
[1735604529589,0.28325001,706.09,704.88,1.04226349]
[1735604530992,0.28325001,706.09,704.85,1.04226349]
[1735604532285,0.28325001,706.09,704.79,1.04226349]
[1735604533692,0.28325001,706.09,704.81,1.04226349]
[1735604534787,0.28325001,706.09,704.84,1.04226349]
[1735604536095,0.28325001,706.09,704.85,1.04226349]
[1735604538297,0.28325001,706.09,704.8,1.04226349]
[1735604539098,0.28325001,706.09,704.88,1.04226349]
[1735604540501,0.28325001,706.09,704.92,1.04226349]
[1735604541493,0.28325001,706.09,704.97,1.04226349]
[1735604543001,0.28325001,706.09,704.98,1.04226349]
[1735604544504,0.28325001,706.09,704.94,1.04226349]
[1735604545403,0.28325001,706.09,704.93,1.04226349]
[1735604546603,0.28325001,706.09,704.9,1.04226349]
[1735604547905,0.28325001,706.09,704.77,1.04226349]
[1735604547906,0.28325001,706.09,704.88,1.04226349]
[1735604549310,0.28325001,706.09,704.86,1.04226349]
[1735604550408,0.28325001,706.09,704.81,1.04226349]
[1735604551411,0.28325001,706.09,704.87,1.04226349]
[1735604552304,0.28325001,706.09,704.91,1.04226349]
[1735604553107,0.28325001,706.09,704.93,1.04226349]
[1735604554207,0.28325001,706.09,704.91,1.04226349]
[1735604555710,0.28325001,706.09,704.96,1.04226349]
[1735604557812,0.28325001,706.09,704.97,1.04226349]
[1735604559014,0.28325001,706.09,704.99,1.04226349]
[1735604559914,0.28325001,706.09,704.97,1.04226349]
[1735604562013,0.28325001,706.09,704.96,1.04226349]
[1735604563218,0.28325001,706.09,704.99,1.04226349]
[1735604564819,0.28324599,706.1,704.99,1.04226349]
[1735604565322,0.28324599,706.1,704.97,1.04226349]
[1735604566621,0.28324599,706.1,704.98,1.04226349]
[1735604568818,0.28324599,706.1,704.73,1.25071619]
[1735604569123,0.28324599,706.1,704.62,1.04226349]
[1735604569821,0.28324599,706.1,704.51,0.28388525]
[1735604581924,0.28324599,706.1,704.58,1.04226349]
[1735604583226,0.28324599,706.1,704.56,1.04226349]
[1735604584327,0.28324599,706.1,704.59,1.04226349]
[1735604585027,0.28324599,706.1,704.51,0.28388525]
[1735604588531,0.28324599,706.1,704.54,1.04226349]
[1735604589630,0.28324599,706.1,704.51,1.32614874]
[1735604590729,0.28324599,706.1,704.94,1.04226349]
[1735604591932,0.28324599,706.1,704.93,1.04226349]
[1735604594337,0.28324599,706.1,704.92,1.04226349]
[1735604595529,0.28324599,706.1,704.94,1.04226349]
[1735604596633,0.28324599,706.1,704.87,1.04226349]
[1735604597732,0.28324599,706.1,704.86,1.04226349]
[1735604598838,0.28324599,706.1,704.92,1.04226349]
[1735604600136,0.28324599,706.1,704.91,1.04226349]
[1735604600840,0.28324599,706.1,704.94,1.04226349]
[1735604601939,0.28324599,706.1,704.51,2.41183989]
[1735604601940,0.28324599,706.1,704.85,1.04226349]
[1735604603039,0.28324599,706.1,704.87,1.04226349]
[1735604604543,0.28324599,706.1,704.86,1.04226349]
[1735604605543,0.28324599,706.1,704.51,0.28388525]
[1735604605544,0.28324599,706.1,704.87,1.04226349]
[1735604606837,0.28324599,706.1,705.01,1.04226349]
[1735604607845,0.28324599,706.1,704.99,1.04226349]
[1735604608942,0.28324599,706.1,704.97,1.04226349]
[1735604610448,0.28324599,706.1,704.95,1.04226349]
[1735604611645,0.28324599,706.1,704.93,1.04226349]
[1735604614146,0.28324599,706.1,705.03,1.04226349]
[1735604614954,0.28324599,706.1,705.05,1.04226349]
[1735604616154,0.28324599,706.1,705.02,1.04226349]
[1735604618152,0.28324599,706.1,704.99,1.04226349]
[1735604619463,0.28324599,706.1,705.02,1.04226349]
[1735604620556,0.28324599,706.1,705.0,1.04226349]
[1735604621460,0.28324599,706.1,705.03,1.04226349]
[1735604623462,0.28324599,706.1,705.05,1.04226349]
[1735604624661,0.28324599,706.1,705.04,1.04226349]
[1735604625662,0.28324599,706.1,705.08,1.04226349]
[1735604627063,0.28324599,706.1,705.05,1.04226349]
[1735604627964,0.28324599,706.1,704.81,1.04226349]
[1735604628156,0.28324599,706.1,704.82,0.28376039]
[1735604631069,0.28324599,706.1,704.84,1.04226349]
[1735604631263,0.28324599,706.1,704.85,0.28374831]
[1735604631868,0.28324599,706.1,704.86,1.04226349]
[1735604632267,0.28324599,706.1,704.87,0.28374026]
[1735604633971,0.28324599,706.1,704.88,1.04226349]
[1735604634268,0.28324599,706.1,704.89,0.28373221]
[1735604635169,0.28324599,706.1,704.91,1.04226349]
[1735604636272,0.28324599,706.1,704.89,0.28373221]
[1735604636273,0.28324599,706.1,704.93,1.04226349]
[1735604637274,0.28324599,706.1,705.26,1.04226349]
[1735604637974,0.28324599,706.1,705.29,1.04226349]
[1735604639177,0.28324599,706.1,705.3,1.04226349]
[1735604641073,0.28324599,706.1,705.31,1.04226349]
[1735604644080,0.28324599,706.1,705.32,1.04226349]
[1735604645481,0.28324599,706.1,705.33,1.04226349]
[1735604646483,0.28324599,706.1,705.24,1.04226349]
[1735604647389,0.28324599,706.1,705.12,1.04226349]
[1735604648084,0.28324599,706.1,705.11,1.04226349]
[1735604649979,0.28324599,706.1,705.22,1.04226349]
[1735604651187,0.28324599,706.1,705.21,1.04226349]
[1735604652186,0.28324599,706.1,705.24,1.04226349]
[1735604654490,0.28324599,706.1,705.25,1.04226349]
[1735604655794,0.28324599,706.1,705.3,1.04226349]
[1735604656695,0.28324599,706.1,705.33,1.04226349]
[1735604658599,0.28324599,706.1,705.32,1.04226349]
[1735604660000,0.28324599,706.1,705.33,1.04226349]
[1735604661000,0.28324599,706.1,705.35,1.04226349]
[1735604662302,0.28324599,706.1,705.36,1.04226349]
[1735604663203,1.05723351,706.67,705.36,1.04226349]
[1735604663398,0.28302153,706.66,705.36,1.04226349]
[1735604663607,1.47921449,706.29,705.29,1.04226349]
[1735604663801,0.28302153,706.66,705.29,1.04226349]
[1735604663999,1.47923021,706.33,705.29,1.04226349]
[1735604664203,0.28302153,706.66,705.29,1.04226349]
[1735604664603,0.28302153,706.66,705.22,1.04226349]
[1735604665498,1.47890017,706.65,705.22,1.04226349]
[1735604665700,0.28302954,706.64,705.22,1.04226349]
[1735604665901,0.28302954,706.64,705.21,1.04226349]
[1735604667305,0.28302954,706.64,705.17,1.04226349]
[1735604669104,0.28302954,706.64,705.16,1.04226349]
[1735604670212,0.28302954,706.64,704.89,0.28373221]
[1735604670213,0.28302954,706.64,705.15,1.04226349]
[1735604671314,0.28302954,706.64,704.89,0.28373221]
[1735604671315,0.28302954,706.64,705.13,1.04226349]
[1735604671913,0.28302954,706.64,704.89,0.28373221]
[1735604674114,0.28302954,706.64,705.17,1.04759192]
[1735604674716,0.28302954,706.64,705.16,1.04759192]
[1735604675311,0.28302954,706.64,704.89,0.28373221]
[1735604675312,0.28302954,706.64,705.13,1.04759192]
[1735604675918,0.28302954,706.64,705.15,1.04759192]
[1735604677218,0.28302954,706.64,705.11,1.04759192]
[1735604678416,0.28302954,706.64,704.89,0.28373221]
[1735604678417,0.28302954,706.64,705.05,1.04759192]
[1735604679118,0.28302954,706.64,704.89,0.28373221]
[1735604686618,0.28302954,706.64,705.01,1.04759192]
[1735604689123,0.28302954,706.64,704.89,1.33132413]
[1735604689124,0.28302954,706.64,704.89,0.28373221]
[1735604695130,0.28302954,706.64,704.93,1.04759192]
[1735604696031,0.28302954,706.64,705.29,1.04759192]
[1735604697330,0.28302954,706.64,704.89,0.28373221]
[1735604697331,0.28302954,706.64,705.34,1.04759192]
[1735604698730,0.28302954,706.64,705.33,1.04759192]
[1735604699429,0.28302954,706.64,705.32,1.04759192]
[1735604702134,0.28302954,706.64,705.26,1.04759192]
[1735604703129,0.28302954,706.64,705.24,1.04759192]
[1735604704132,0.28302954,706.64,705.22,1.04759192]
[1735604705338,0.28302954,706.64,705.24,1.04759192]
[1735604706540,0.28302954,706.64,705.25,1.04759192]
[1735604707239,0.28302954,706.64,704.89,0.28373221]
[1735604708741,0.28302954,706.64,705.29,1.04986727]
[1735604709739,0.28302954,706.64,705.17,1.04986727]
[1735604710740,0.28302954,706.64,705.14,1.04986727]
[1735604711843,0.28302954,706.64,705.12,1.04986727]
[1735604713037,0.28302954,706.64,705.2,1.04986727]
[1735604714040,0.28302954,706.64,705.22,1.04986727]
[1735604716442,0.28302954,706.64,705.09,1.04986727]
[1735604716443,0.28302954,706.64,705.24,1.04986727]
[1735604718846,0.28302954,706.64,705.35,1.04986727]
[1735604719945,0.28302954,706.64,705.3,1.04986727]
[1735604720956,0.28302954,706.64,705.35,1.04986727]
[1735604722753,1.34346228,706.64,705.42,1.04986727]
[1735604723951,1.06043274,706.62,705.37,1.04986727]
[1735604725058,0.28304557,706.6,705.37,1.04986727]
[1735604725253,0.28304557,706.6,705.33,1.04986727]
[1735604726459,0.28304557,706.6,705.38,1.04986727]
[1735604727657,0.28304557,706.6,705.39,1.04986727]
[1735604728961,0.28304557,706.6,705.34,1.04986727]
[1735604733059,0.28304557,706.6,705.33,1.04986727]
[1735604734162,0.28304557,706.6,705.32,1.04986727]
[1735604735364,0.28304557,706.6,705.31,1.04986727]
[1735604736661,0.28304557,706.6,705.34,1.04986727]
[1735604737463,0.28304557,706.6,705.35,1.04986727]
[1735604739364,0.28304557,706.6,705.34,1.04986727]
[1735604740463,0.28304557,706.6,705.35,1.04986727]
[1735604741565,0.28304557,706.6,704.89,0.28373221]
[1735604741566,0.28304557,706.6,705.24,1.04986727]
[1735604742861,0.28304557,706.6,705.3,1.04986727]
[1735604743766,0.28304557,706.6,705.32,1.04986727]
[1735604745760,0.28304557,706.6,705.29,1.04986727]
[1735604746769,0.28304557,706.6,705.33,1.04986727]
[1735604748372,0.28304557,706.6,705.34,1.04986727]
[1735604749572,0.28304557,706.6,705.32,1.04986727]
[1735604750874,0.28304557,706.6,705.47,1.04986727]
[1735604751871,0.28304557,706.6,705.06,2.14347902]
[1735604751872,0.28304557,706.6,705.53,1.04986727]
[1735604753268,0.28304557,706.6,705.56,1.04986727]
[1735604754171,0.28304557,706.6,705.58,1.04986727]
[1735604754876,0.28304557,706.6,705.57,1.04986727]
[1735604756173,0.28304557,706.6,705.07,2.14347902]
[1735604756174,0.28304557,706.6,705.59,1.04986727]
[1735604758376,0.28304557,706.6,705.58,1.04986727]
[1735604759381,0.28304557,706.6,705.59,1.04986727]
[1735604760478,0.28304557,706.6,705.6,1.04986727]
[1735604761182,0.28304557,706.6,705.59,1.04986727]
[1735604762083,0.28304557,706.6,705.53,1.04986727]
[1735604764387,0.28304557,706.6,705.35,1.04986727]
[1735604765382,0.28304557,706.6,705.34,1.04986727]
[1735604768681,0.28304557,706.6,705.35,1.04986727]
[1735604769887,0.28304557,706.6,705.36,1.04986727]
[1735604771486,0.28304557,706.6,705.26,1.04986727]
[1735604773791,0.28304557,706.6,705.13,1.04986727]
[1735604773792,0.28304557,706.6,705.33,1.04986727]
[1735604774689,0.28304557,706.6,705.35,1.04986727]
[1735604777090,0.28304557,706.6,705.3,1.04986727]
[1735604781495,0.28304557,706.6,705.33,1.04986727]
[1735604783996,0.28304557,706.6,705.39,1.04986727]
[1735604785200,0.28304557,706.6,705.4,1.04986727]
[1735604786393,0.28304557,706.6,704.67,2.14347902]
[1735604786394,0.28304557,706.6,705.5,1.04986727]
[1735604787899,0.28304557,706.6,705.48,1.04986727]
[1735604788900,0.28304557,706.6,705.49,1.04986727]
[1735604790200,0.28304557,706.6,705.45,1.04986727]
[1735604791200,0.28304557,706.6,704.76,2.14347902]
[1735604791201,0.28304557,706.6,705.44,1.04986727]
[1735604792299,0.28304557,706.6,705.32,1.04986727]
[1735604792300,0.28304557,706.6,705.45,1.04986727]
[1735604793104,0.28304557,706.6,705.47,1.04986727]
[1735604794200,0.28304557,706.6,705.44,1.04986727]
[1735604795198,0.28304557,706.6,705.48,1.04986727]
[1735604796010,0.28304557,706.6,705.43,1.04986727]
[1735604797109,0.28304557,706.6,705.46,1.04986727]
[1735604798211,0.28304557,706.6,705.44,1.04986727]
[1735604799514,0.28304557,706.6,705.45,1.04986727]
[1735604801813,0.28304557,706.6,705.46,1.04986727]
[1735604803615,0.28304557,706.6,705.47,1.04986727]
[1735604805415,0.28304557,706.6,705.48,1.04986727]
[1735604806618,0.28304557,706.6,705.55,1.04986727]
[1735604808322,0.28304557,706.6,705.6,1.04986727]
[1735604809320,0.28304557,706.6,705.46,1.04986727]
[1735604810421,0.28304557,706.6,705.47,1.04986727]
[1735604812121,0.28304557,706.6,705.44,1.04986727]
[1735604819129,0.28304557,706.6,705.46,1.04986727]
[1735604820027,0.28304557,706.6,705.43,1.04986727]
[1735604821227,0.28304557,706.6,705.44,1.04986727]
[1735604821727,0.27903529,706.6,705.44,1.04986727]
[1735604822127,0.27903529,706.6,705.4,1.04986727]
[1735604823224,0.27903529,706.6,705.35,1.04986727]
[1735604824429,0.26066206,706.59,705.35,1.04986727]
[1735604824831,0.26066206,706.59,705.24,1.04986727]
[1735604826033,1.06043274,706.42,705.07,1.04986727]
[1735604826232,0.26066206,706.41,705.07,1.04986727]
[1735604826431,0.26073894,706.41,705.07,1.04986727]
[1735604826928,1.47983302,706.4,705.07,1.04986727]
[1735604827128,0.26073894,706.39,705.07,1.04986727]
[1735604827531,0.26073894,706.39,704.82,1.04986727]
[1735604828734,0.26073894,706.39,704.86,1.04986727]
[1735604829431,0.26073894,706.39,704.8,1.04986727]
[1735604830535,0.26073894,706.39,704.79,1.04986727]
[1735604831237,0.28313773,706.37,704.79,1.04986727]
[1735604831630,0.26073163,706.36,704.79,1.04986727]
[1735604831833,0.26073163,706.36,704.74,1.04986727]
[1735604833139,0.26073163,706.36,704.71,1.04986727]
[1735604833335,0.28314975,706.34,704.71,1.04986727]
[1735604833639,0.26073163,706.33,704.71,1.04986727]
[1735604833834,0.28316178,706.31,704.71,1.04986727]
[1735604834538,0.28316178,706.31,704.44,1.25984073]
[1735604834539,0.28316178,706.31,704.67,1.04986727]
[1735604835539,0.28316178,706.31,704.66,1.04986727]
[1735604836335,0.26077971,706.3,704.66,1.04986727]
[1735604836541,0.28316178,706.31,704.4,1.04986727]
[1735604837042,1.74116361,706.3,704.4,1.04986727]
[1735604837339,0.26081125,706.29,704.4,1.04986727]
[1735604838037,0.26081125,706.29,704.28,1.04986727]
[1735604839142,0.26081125,706.29,704.08,1.04986727]
[1735604839342,1.48035236,706.3,704.09,0.28405459]
[1735604839543,0.26085346,706.29,704.09,0.28405459]
[1735604842043,0.26084349,706.28,704.09,0.28405459]
[1735604842239,0.28321391,706.18,704.09,0.28405459]
[1735604842437,0.26084349,706.17,704.09,0.28405459]
[1735604842639,1.48035236,706.3,704.09,0.28405459]
[1735604842640,0.28325803,706.07,704.09,0.28405459]
[1735604842837,0.26084286,706.06,704.09,0.28405459]
[1735604843542,0.28327006,706.04,704.09,0.28405459]
[1735604844442,0.26083855,706.03,704.09,0.28405459]
[1735604844644,0.28327006,706.04,704.09,0.28405459]
[1735604844843,0.26081663,706.03,704.09,0.28405459]
[1735604845244,0.28327809,706.02,704.16,1.04986727]
[1735604845441,0.26081663,706.01,704.18,0.28401829]
[1735604846541,0.28328611,706.0,704.18,0.28401829]
[1735604847141,0.28328611,706.0,704.19,1.04986727]
[1735604847346,1.74130137,705.99,704.19,1.04986727]
[1735604847543,0.2608073,705.98,704.19,1.04986727]
[1735604848246,0.28329815,705.97,704.21,0.28400619]
[1735604848448,0.26081496,705.96,704.21,0.28400619]
[1735604848647,0.28329815,705.97,704.21,0.28400619]
[1735604848848,0.28330618,705.95,704.21,0.28400619]
[1735604849446,0.28330618,705.95,704.21,1.33387346]
[1735604850552,0.28330618,705.95,704.23,1.04986727]
[1735604850750,0.28330618,705.95,704.24,0.28399409]
[1735604855254,0.26086331,705.94,704.24,0.28399409]
[1735604855446,0.28330618,705.95,704.24,0.28399409]
[1735604856450,0.2608557,705.94,704.24,0.28399409]
[1735604857956,0.28330618,705.95,704.24,0.28399409]
[1735604858459,0.28330618,705.95,704.32,1.04986727]
[1735604859657,0.28330618,705.95,704.26,1.04986727]
[1735604860558,0.28330618,705.95,704.28,1.04986727]
[1735604861458,0.26086543,705.94,704.28,1.04986727]
[1735604861656,0.28331822,705.92,704.28,1.04986727]
[1735604861854,0.2608766,705.91,704.28,1.04986727]
[1735604862356,1.48104539,705.9,704.28,1.04986727]
[1735604862556,0.26093241,705.89,704.36,1.04986727]
[1735604862752,0.28333829,705.87,704.36,1.04986727]
[1735604862957,0.26093241,705.86,704.36,1.04986727]
[1735604863158,0.28333829,705.87,704.36,1.04986727]
[1735604863359,0.28335033,705.84,704.36,1.04986727]
[1735604863560,0.26092709,705.83,704.36,1.04986727]
[1735604863757,0.28336237,705.81,704.24,0.28399409]
[1735604863961,0.26092709,705.8,704.24,0.28399409]
[1735604864165,0.28337442,705.78,704.24,0.28399409]
[1735604864361,0.26092709,705.77,704.24,0.28399409]
[1735604864568,0.28338646,705.75,704.24,0.28399409]
[1735604864767,0.26092709,705.74,704.24,0.28399409]
[1735604864962,0.28339851,705.72,704.24,0.28399409]
[1735604868072,0.28339851,705.72,704.28,1.04986727]
[1735604869173,0.28339851,705.72,704.32,1.04986727]
[1735604870372,0.28339851,705.72,704.34,1.04986727]
[1735604872174,0.28339851,705.72,704.51,1.04986727]
[1735604872570,1.48070404,705.71,704.51,1.04986727]
[1735604872972,0.28340654,705.7,704.27,1.04986727]
[1735604874379,0.28340654,705.7,704.28,1.04986727]
[1735604875079,0.28340654,705.7,704.29,1.04986727]
[1735604876278,0.28340654,705.7,704.26,1.04986727]
[1735604877175,0.28340654,705.7,704.24,0.28399409]
[1735604881779,0.28340654,705.7,704.54,1.04986727]
[1735604884085,0.28340654,705.7,704.24,1.54383482]
[1735604884086,0.28340654,705.7,704.62,1.04986727]
[1735604885385,0.28340654,705.7,704.33,1.25984073]
[1735604885386,0.28340654,705.7,704.61,1.04986727]
[1735604886187,0.28340654,705.7,704.24,0.28399409]
[1735604886188,0.28340654,705.7,704.62,1.04986727]
[1735604887293,0.28340654,705.7,704.7,1.04986727]
[1735604888291,0.28340654,705.7,704.66,1.04986727]
[1735604889394,0.28340654,705.7,704.55,1.04986727]
[1735604891193,0.28340654,705.7,704.57,1.04986727]
[1735604892890,0.28340654,705.7,704.24,0.28399409]
[1735604892891,0.28340654,705.7,704.63,1.04986727]
[1735604894098,0.28340654,705.7,704.62,1.04986727]
[1735604895199,0.28340654,705.7,704.58,1.04986727]
[1735604896392,0.28340654,705.7,704.51,1.04986727]
[1735604896995,0.28340654,705.7,704.5,1.04986727]
[1735604897899,0.28340654,705.7,704.47,1.04986727]
[1735604898999,0.28340654,705.7,704.24,0.28399409]
[1735604899000,0.28340654,705.7,704.45,1.04986727]
[1735604900903,0.28340654,705.7,704.46,1.04986727]
[1735604901899,0.28340654,705.7,704.25,1.04986727]
[1735604903305,0.28340654,705.7,704.27,1.04986727]
[1735604904398,0.28340654,705.7,704.36,1.04986727]
[1735604905304,0.28340654,705.7,704.24,0.28399409]
[1735604905305,0.28340654,705.7,704.41,1.04986727]
[1735604906505,0.28340654,705.7,704.42,1.04986727]
[1735604907399,0.28340654,705.7,704.57,1.04986727]
[1735604908705,0.28340654,705.7,704.69,1.04986727]
[1735604909806,0.28340654,705.7,704.71,1.04986727]
[1735604911101,0.28340654,705.7,704.64,1.04986727]
[1735604912108,0.28340654,705.7,704.54,1.04986727]
[1735604912109,0.28340654,705.7,704.66,1.04986727]
[1735604913310,0.28340654,705.7,704.51,1.04986727]
[1735604915416,0.28340654,705.7,704.49,1.04986727]
[1735604916015,0.28340654,705.7,704.47,1.04986727]
[1735604917221,0.28340654,705.7,704.49,1.04986727]
[1735604918421,0.28340654,705.7,704.43,1.04986727]
[1735604919621,0.28340654,705.7,704.09,1.25984073]
[1735604919622,0.28340654,705.7,704.44,1.04986727]
[1735604920821,0.28340654,705.7,704.5,1.04986727]
[1735604922022,0.28340654,705.7,704.69,1.04986727]
[1735604923225,0.28340654,705.7,704.67,1.04986727]
[1735604925728,0.28340654,705.7,704.66,1.04986727]
[1735604927027,0.28340654,705.7,704.67,1.04986727]
[1735604927826,0.28340654,705.7,704.68,1.04986727]
[1735604928829,0.28340654,705.7,704.66,1.04986727]
[1735604929827,0.28340654,705.7,704.68,1.04986727]
[1735604932024,0.28340654,705.7,704.71,1.04986727]
[1735604932629,0.28340654,705.7,704.73,1.04986727]
[1735604933928,0.28340654,705.7,704.77,1.04986727]
[1735604934930,0.28340654,705.7,704.28,2.14347902]
[1735604934931,0.28340654,705.7,704.8,1.04986727]
[1735604936633,0.28340654,705.7,704.84,1.04986727]
[1735604937433,0.28340654,705.7,704.85,1.04986727]
[1735604938334,0.28340654,705.7,704.84,1.04986727]
[1735604939730,0.28340654,705.7,704.86,1.04986727]
[1735604940836,0.28340654,705.7,704.76,1.04986727]
[1735604941938,0.28340654,705.7,704.75,1.04986727]
[1735604943135,0.28340654,705.7,704.16,2.14347902]
[1735604943136,0.28340654,705.7,704.72,1.04986727]
[1735604944340,0.28340654,705.7,704.66,1.04986727]
[1735604945135,0.28340654,705.7,704.67,1.04986727]
[1735604948543,0.28340654,705.7,704.72,1.04986727]
[1735604949437,0.28340654,705.7,704.81,1.04986727]
[1735604950440,0.28340654,705.7,704.78,1.04986727]
[1735604951241,0.28340654,705.7,704.72,1.04986727]
[1735604952636,0.28340654,705.7,704.68,1.04986727]
[1735604954638,0.28340654,705.7,704.71,1.04986727]
[1735604955743,0.28340654,705.7,704.72,1.04986727]
[1735604956544,0.28340654,705.7,704.73,1.04986727]
[1735604957246,0.28340654,705.7,704.74,1.04986727]
[1735604958338,0.28340654,705.7,704.17,2.14347902]
[1735604958339,0.28340654,705.7,704.76,1.04986727]
[1735604960339,0.28340654,705.7,704.83,1.04986727]
[1735604961645,0.28340654,705.7,704.84,1.04986727]
[1735604963247,0.28340654,705.7,704.88,1.04986727]
[1735604964339,0.28340654,705.7,704.79,1.04986727]
[1735604964340,0.28340654,705.7,704.87,1.04986727]
[1735604966949,0.28340654,705.7,704.88,1.04986727]
[1735604968351,0.28340654,705.7,704.77,1.04986727]
[1735604969146,0.28340654,705.7,704.17,2.14347902]
[1735604969147,0.28340654,705.7,704.64,1.04986727]
[1735604971348,0.28340654,705.7,704.62,1.04986727]
[1735604972254,0.28340654,705.7,704.59,1.04986727]
[1735604973253,0.28340654,705.7,704.58,1.04986727]
[1735604974155,0.28340654,705.7,704.81,1.04986727]
[1735604974958,0.28340654,705.7,704.73,1.04986727]
[1735604976056,0.28340654,705.7,704.3,2.14347902]
[1735604976057,0.28340654,705.7,704.72,1.04986727]
[1735604977054,0.28340654,705.7,704.55,1.04986727]
[1735604978758,0.28340654,705.7,704.57,1.04986727]
[1735604979362,0.28340654,705.7,704.56,1.04986727]
[1735604980261,0.28340654,705.7,704.54,1.04986727]
[1735604981159,0.28340654,705.7,704.56,1.04986727]
[1735604981762,0.28340654,705.7,704.57,0.28386107]
[1735604983363,0.28340654,705.7,704.57,1.33372834]
[1735604984363,0.28340654,705.7,704.57,0.28386107]
[1735604985563,1.48029989,705.96,704.57,0.28386107]
[1735604986165,1.48029989,705.96,704.58,1.04986727]
[1735604987267,1.48029989,705.96,704.57,0.28386107]
[1735604991364,1.48029989,705.96,704.6,1.04986727]
[1735604992171,1.48029989,705.96,704.61,1.04986727]
[1735604994267,1.48029989,705.96,704.62,1.04986727]
[1735604995074,1.48029989,705.96,704.64,1.04986727]
[1735604996276,1.48029989,705.96,704.7,1.04986727]
[1735604997270,0.28330618,705.95,704.7,1.04986727]
[1735604998375,0.28330618,705.95,704.72,1.04986727]
[1735604999375,0.28330618,705.95,704.7,1.04986727]
[1735605000570,0.28330618,705.95,704.57,0.28386107]
[1735605000571,0.28330618,705.95,704.88,1.04986727]
[1735605001367,0.28330618,705.95,704.95,1.04986727]
[1735605002676,0.28330618,705.95,705.16,1.04986727]
[1735605003571,0.28330618,705.95,705.01,1.04986727]
[1735605004668,0.28330618,705.95,705.08,1.04986727]
[1735605005780,0.28330618,705.95,705.1,1.04986727]
[1735605007479,0.28330618,705.95,705.12,1.04986727]
[1735605008274,0.28330618,705.95,705.06,1.04986727]
[1735605009279,0.28330618,705.95,705.03,1.04986727]
[1735605010380,0.28330618,705.95,704.57,0.28386107]
[1735605010381,0.28330618,705.95,704.99,1.04986727]